[Event "Titled Tuesday Blitz November 14 Early 2023"]
[White "Jarocka, Liwia"]
[Black "Grossboss19"]
[WhiteFideId "21807558"]
[WhiteElo "2339"]
[BlackElo "2459"]
[Result "0-1"]
[Round "11"]
[TimeControl "180+1"]
[Date "2023.11.14"]
[WhiteClock "0:00:43"]
[BlackClock "0:00:04"]
[Board "133"]

1. e4 {[%clk 0:03:00]}  c5 {[%clk 0:02:58]} 2. Nf3 {[%clk 0:02:58]}  Nc6 {[%clk 0:02:58]} 3. d4 {[%clk 0:02:58]}  cxd4 {[%clk 0:02:53]} 4. Nxd4 {[%clk 0:02:59]}  Nf6 {[%clk 0:02:53]} 5. Nc3 {[%clk 0:02:57]}  e6 {[%clk 0:02:52]} 6. Ndb5 {[%clk 0:02:54]}  a6 {[%clk 0:02:47]} 7. Nd6+ {[%clk 0:02:51]}  Bxd6 {[%clk 0:02:45]} 8. Qxd6 {[%clk 0:02:52]}  Qa5 {[%clk 0:02:45]} 9. Bd2 {[%clk 0:02:48]}  Qb4 {[%clk 0:02:25]} 10. Qxb4 {[%clk 0:02:29]}  Nxb4 {[%clk 0:02:26]} 11. O-O-O {[%clk 0:02:30]}  Nc6 {[%clk 0:02:01]} 12. f3 {[%clk 0:02:28]}  O-O {[%clk 0:01:46]} 13. Bf4 {[%clk 0:02:20]}  d5 {[%clk 0:01:43]} 14. exd5 {[%clk 0:02:19]}  exd5 {[%clk 0:01:38]} 15. Nxd5 {[%clk 0:02:18]}  Nxd5 {[%clk 0:01:39]} 16. Rxd5 {[%clk 0:02:19]}  Be6 {[%clk 0:01:32]} 17. Rd2 {[%clk 0:02:19]}  Rfe8 {[%clk 0:01:22]} 18. a3 {[%clk 0:02:11]}  Na5 {[%clk 0:01:09]} 19. Bc7 {[%clk 0:01:58]}  Nc4 {[%clk 0:00:48]} 20. Bxc4 {[%clk 0:01:57]}  Bxc4 {[%clk 0:00:49]} 21. Ba5 {[%clk 0:01:57]}  Rac8 {[%clk 0:00:38]} 22. Bc3 {[%clk 0:01:55]}  f6 {[%clk 0:00:16]} 23. Rd7 {[%clk 0:01:42]}  b5 {[%clk 0:00:14]} 24. Ra7 {[%clk 0:01:42]}  Rc6 {[%clk 0:00:13]} 25. Rd1 {[%clk 0:01:35]}  Be6 {[%clk 0:00:08]} 26. Re1 {[%clk 0:01:31]}  Bf7 {[%clk 0:00:07]} 27. Rxe8+ {[%clk 0:01:30]}  Bxe8 {[%clk 0:00:08]} 28. Bd4 {[%clk 0:01:27]}  h5 {[%clk 0:00:07]} 29. c3 {[%clk 0:01:27]}  h4 {[%clk 0:00:07]} 30. b4 {[%clk 0:01:26]}  Bh5 {[%clk 0:00:06]} 31. f4 {[%clk 0:01:22]}  Re6 {[%clk 0:00:06]} 32. Rc7 {[%clk 0:01:12]}  Re1+ {[%clk 0:00:05]} 33. Kd2 {[%clk 0:01:09]}  Re2+ {[%clk 0:00:05]} 34. Kd3 {[%clk 0:01:09]}  Rxg2 {[%clk 0:00:05]} 35. c4 {[%clk 0:01:08]}  Be2+ {[%clk 0:00:04]} 36. Ke3 {[%clk 0:01:05]}  Bxc4 {[%clk 0:00:05]} 37. Rc8+ {[%clk 0:00:57]}  Kh7 {[%clk 0:00:05]} 38. Rc7 {[%clk 0:00:57]}  Kg6 {[%clk 0:00:05]} 39. Bc5 {[%clk 0:00:56]}  Rxh2 {[%clk 0:00:04]} 40. Bf8 {[%clk 0:00:56]}  Kf5 {[%clk 0:00:04]} 41. Bxg7 {[%clk 0:00:55]}  Rh3+ {[%clk 0:00:04]} 42. Kd4 {[%clk 0:00:54]}  Rd3+ {[%clk 0:00:03]} 43. Kc5 {[%clk 0:00:53]}  h3 {[%clk 0:00:04]} 44. Rc6 {[%clk 0:00:51]}  Rd5+ {[%clk 0:00:03]} 45. Kb6 {[%clk 0:00:51]}  h2 {[%clk 0:00:03]} 46. Rxf6+ {[%clk 0:00:50]}  Kg4 {[%clk 0:00:04]} 47. Rh6 {[%clk 0:00:51]}  Rh5 {[%clk 0:00:04]} 48. Rg6+ {[%clk 0:00:43]}  Kf5 {[%clk 0:00:04]} 0-1


[Site "https://www.chess.com"]

[Event "Titled Tuesday Blitz November 14 Early 2023"]
[White "LangesNasenhaar"]
[Black "Babayeva, Nasrin"]
[BlackFideId "13416626"]
[WhiteElo "2405"]
[BlackElo "1849"]
[Result "1-0"]
[Round "11"]
[TimeControl "180+1"]
[Date "2023.11.14"]
[WhiteClock "0:01:14"]
[BlackClock "0:00:18"]
[Board "134"]

1. d4 {[%clk 0:02:59]}  d6 {[%clk 0:02:56]} 2. Nc3 {[%clk 0:02:59]}  e5 {[%clk 0:02:53]} 3. dxe5 {[%clk 0:02:58]}  dxe5 {[%clk 0:02:54]} 4. Qxd8+ {[%clk 0:02:58]}  Kxd8 {[%clk 0:02:37]} 5. f4 {[%clk 0:02:59]}  Nc6 {[%clk 0:02:35]} 6. Nf3 {[%clk 0:02:59]}  Bd6 {[%clk 0:02:31]} 7. Ne4 {[%clk 0:02:46]}  Bf5 {[%clk 0:02:23]} 8. Nxd6 {[%clk 0:02:45]}  cxd6 {[%clk 0:02:24]} 9. Ng5 {[%clk 0:02:38]}  Nh6 {[%clk 0:02:19]} 10. e4 {[%clk 0:02:38]}  Bd7 {[%clk 0:02:10]} 11. f5 {[%clk 0:02:37]}  f6 {[%clk 0:01:59]} 12. Nf3 {[%clk 0:02:31]}  d5 {[%clk 0:01:58]} 13. Bxh6 {[%clk 0:02:25]}  gxh6 {[%clk 0:01:56]} 14. Bd3 {[%clk 0:02:20]}  Nb4 {[%clk 0:01:51]} 15. a3 {[%clk 0:01:58]}  Nxd3+ {[%clk 0:01:47]} 16. cxd3 {[%clk 0:01:59]}  Ke7 {[%clk 0:01:45]} 17. Kd2 {[%clk 0:01:51]}  Rhg8 {[%clk 0:01:40]} 18. g3 {[%clk 0:01:51]}  Rgd8 {[%clk 0:01:23]} 19. Ke3 {[%clk 0:01:49]}  Rac8 {[%clk 0:00:58]} 20. Rhc1 {[%clk 0:01:48]}  Bb5 {[%clk 0:00:44]} 21. Rxc8 {[%clk 0:01:31]}  Rxc8 {[%clk 0:00:38]} 22. exd5 {[%clk 0:01:30]}  Kd6 {[%clk 0:00:27]} 23. Nd2 {[%clk 0:01:24]}  Kxd5 {[%clk 0:00:26]} 24. Ne4 {[%clk 0:01:24]}  Rc6 {[%clk 0:00:24]} 25. Nc3+ {[%clk 0:01:18]}  Kc5 {[%clk 0:00:23]} 26. Rc1 {[%clk 0:01:18]}  Kb6 {[%clk 0:00:22]} 27. Nd5+ {[%clk 0:01:15]}  Ka6 {[%clk 0:00:18]} 28. Nb4+ {[%clk 0:01:14]} 1-0


[Site "https://www.chess.com"]

[Event "Titled Tuesday Blitz November 14 Early 2023"]
[White "vovasev"]
[Black "Feliz Dotel, Dewar Bienvenido"]
[BlackFideId "6402801"]
[WhiteElo "2111"]
[BlackElo "2146"]
[Result "0-1"]
[Round "11"]
[TimeControl "180+1"]
[Date "2023.11.14"]
[WhiteClock "0:01:31"]
[BlackClock "0:01:14"]
[Board "135"]

1. e4 {[%clk 0:03:00]}  e5 {[%clk 0:02:59]} 2. Nf3 {[%clk 0:02:58]}  Nc6 {[%clk 0:02:58]} 3. Nc3 {[%clk 0:02:57]}  Nf6 {[%clk 0:02:58]} 4. d4 {[%clk 0:02:56]}  exd4 {[%clk 0:02:57]} 5. Nxd4 {[%clk 0:02:56]}  Bb4 {[%clk 0:02:47]} 6. Nxc6 {[%clk 0:02:54]}  bxc6 {[%clk 0:02:47]} 7. Bd3 {[%clk 0:02:55]}  O-O {[%clk 0:02:47]} 8. O-O {[%clk 0:02:54]}  d5 {[%clk 0:02:45]} 9. exd5 {[%clk 0:02:48]}  cxd5 {[%clk 0:02:46]} 10. Bg5 {[%clk 0:02:42]}  c6 {[%clk 0:02:45]} 11. Qf3 {[%clk 0:02:35]}  Bd6 {[%clk 0:02:44]} 12. h3 {[%clk 0:02:26]}  Rb8 {[%clk 0:02:44]} 13. b3 {[%clk 0:02:25]}  Be5 {[%clk 0:02:43]} 14. Bd2 {[%clk 0:02:19]}  Qa5 {[%clk 0:02:14]} 15. Rae1 {[%clk 0:02:12]}  Re8 {[%clk 0:01:32]} 16. Ne4 {[%clk 0:01:43]}  dxe4 {[%clk 0:01:27]} 17. Bxa5 {[%clk 0:01:42]}  exf3 {[%clk 0:01:27]} 18. Rxe5 {[%clk 0:01:39]}  Rxe5 {[%clk 0:01:25]} 19. Bc7 {[%clk 0:01:40]}  fxg2 {[%clk 0:01:15]} 20. Re1 {[%clk 0:01:39]}  Rxe1+ {[%clk 0:01:14]} 21. Kxg2 {[%clk 0:01:31]}  Rb7 {[%clk 0:01:14]} 0-1


[Site "https://www.chess.com"]

[Event "Titled Tuesday Blitz November 14 Early 2023"]
[White "Winkels, Marcel"]
[Black "DonCiao"]
[WhiteFideId "1003887"]
[WhiteElo "2060"]
[BlackElo "2118"]
[Result "1-0"]
[Round "11"]
[TimeControl "180+1"]
[Date "2023.11.14"]
[WhiteClock "0:00:20"]
[BlackClock "0:00:00"]
[Board "136"]

1. e4 {[%clk 0:03:00]}  c5 {[%clk 0:02:59]} 2. Nf3 {[%clk 0:03:00]}  Nc6 {[%clk 0:02:59]} 3. d4 {[%clk 0:03:00]}  cxd4 {[%clk 0:02:59]} 4. Nxd4 {[%clk 0:03:01]}  Nf6 {[%clk 0:02:59]} 5. Nc3 {[%clk 0:03:02]}  e5 {[%clk 0:02:59]} 6. Ndb5 {[%clk 0:03:02]}  d6 {[%clk 0:02:59]} 7. Bg5 {[%clk 0:03:01]}  a6 {[%clk 0:02:59]} 8. Na3 {[%clk 0:03:01]}  b5 {[%clk 0:02:59]} 9. Nab1 {[%clk 0:02:59]}  Be7 {[%clk 0:02:55]} 10. Bxf6 {[%clk 0:02:58]}  Bxf6 {[%clk 0:02:55]} 11. Nd5 {[%clk 0:02:59]}  O-O {[%clk 0:02:52]} 12. a4 {[%clk 0:02:57]}  bxa4 {[%clk 0:02:49]} 13. Bc4 {[%clk 0:02:52]}  Bg5 {[%clk 0:02:45]} 14. O-O {[%clk 0:02:45]}  Rb8 {[%clk 0:02:37]} 15. Rxa4 {[%clk 0:02:33]}  Rxb2 {[%clk 0:02:31]} 16. Bxa6 {[%clk 0:02:32]}  Nd4 {[%clk 0:02:08]} 17. Bd3 {[%clk 0:01:47]}  Bd7 {[%clk 0:02:00]} 18. Ra7 {[%clk 0:01:42]}  Bb5 {[%clk 0:01:46]} 19. Bxb5 {[%clk 0:01:33]}  Nxb5 {[%clk 0:01:37]} 20. Ra4 {[%clk 0:01:20]}  f5 {[%clk 0:01:25]} 21. exf5 {[%clk 0:01:18]}  Nd4 {[%clk 0:01:23]} 22. c3 {[%clk 0:01:09]}  Ne2+ {[%clk 0:01:17]} 23. Kh1 {[%clk 0:01:08]}  Rxf5 {[%clk 0:01:17]} 24. Rb4 {[%clk 0:00:57]}  Rxb4 {[%clk 0:00:43]} 25. cxb4 {[%clk 0:00:56]}  Nd4 {[%clk 0:00:41]} 26. Nbc3 {[%clk 0:00:53]}  Qf8 {[%clk 0:00:37]} 27. f3 {[%clk 0:00:48]}  e4 {[%clk 0:00:33]} 28. Nxe4 {[%clk 0:00:45]}  Rxd5 {[%clk 0:00:32]} 29. Nxg5 {[%clk 0:00:44]}  Qf5 {[%clk 0:00:18]} 30. Ne4 {[%clk 0:00:42]}  Nb5 {[%clk 0:00:12]} 31. Qb3 {[%clk 0:00:39]}  Kh8 {[%clk 0:00:10]} 32. Rc1 {[%clk 0:00:36]}  h5 {[%clk 0:00:09]} 33. Qc2 {[%clk 0:00:28]}  Kh7 {[%clk 0:00:05]} 34. Ng5+ {[%clk 0:00:26]}  Kg6 {[%clk 0:00:03]} 35. Qxf5+ {[%clk 0:00:22]}  Kxf5 {[%clk 0:00:03]} 36. Ne4 {[%clk 0:00:23]}  Rd4 {[%clk 0:00:00]} 37. Rb1 {[%clk 0:00:20]} 1-0


[Site "https://www.chess.com"]

[Event "Titled Tuesday Blitz November 14 Early 2023"]
[White "Sanchez Alvares, Kelvin Antonio"]
[Black "Fernandez Hernandez, Gerardo"]
[WhiteFideId "3906680"]
[BlackFideId "2207400"]
[WhiteElo "2592"]
[BlackElo "2104"]
[Result "0-1"]
[Round "11"]
[TimeControl "180+1"]
[Date "2023.11.14"]
[WhiteClock "0:00:26"]
[BlackClock "0:00:22"]
[Board "137"]

1. e4 {[%clk 0:03:00]}  e6 {[%clk 0:02:59]} 2. d4 {[%clk 0:03:00]}  d5 {[%clk 0:03:00]} 3. Nc3 {[%clk 0:02:59]}  Nc6 {[%clk 0:03:00]} 4. Nf3 {[%clk 0:02:57]}  Nf6 {[%clk 0:03:00]} 5. Bg5 {[%clk 0:02:56]}  Be7 {[%clk 0:03:00]} 6. e5 {[%clk 0:02:56]}  Ne4 {[%clk 0:02:58]} 7. Bxe7 {[%clk 0:02:57]}  Qxe7 {[%clk 0:02:58]} 8. Bb5 {[%clk 0:02:48]}  Qb4 {[%clk 0:02:54]} 9. O-O {[%clk 0:02:43]}  Nxc3 {[%clk 0:02:52]} 10. Bxc6+ {[%clk 0:02:43]}  bxc6 {[%clk 0:02:53]} 11. bxc3 {[%clk 0:02:42]}  Qxc3 {[%clk 0:02:53]} 12. Re1 {[%clk 0:02:42]}  Qa3 {[%clk 0:02:42]} 13. Re3 {[%clk 0:02:40]}  Qe7 {[%clk 0:02:41]} 14. Nd2 {[%clk 0:02:38]}  c5 {[%clk 0:02:33]} 15. dxc5 {[%clk 0:02:28]}  Qxc5 {[%clk 0:02:21]} 16. Rg3 {[%clk 0:02:26]}  O-O {[%clk 0:02:11]} 17. Qh5 {[%clk 0:02:18]}  f6 {[%clk 0:01:55]} 18. Rh3 {[%clk 0:02:12]}  Qxc2 {[%clk 0:01:45]} 19. Nf3 {[%clk 0:02:01]}  fxe5 {[%clk 0:01:20]} 20. Qxe5 {[%clk 0:01:47]}  Rb8 {[%clk 0:01:11]} 21. g4 {[%clk 0:01:31]}  Rb1+ {[%clk 0:00:58]} 22. Rxb1 {[%clk 0:01:30]}  Qxb1+ {[%clk 0:00:59]} 23. Kg2 {[%clk 0:01:30]}  Qe4 {[%clk 0:00:39]} 24. Qxc7 {[%clk 0:01:23]}  d4 {[%clk 0:00:38]} 25. Kf1 {[%clk 0:00:48]}  Ba6+ {[%clk 0:00:30]} 26. Kg1 {[%clk 0:00:26]}  Rxf3 {[%clk 0:00:22]} 0-1


[Site "https://www.chess.com"]